fUSD/lending_fUSD_20250227
["ID","MTS","AMOUNT","RATE_DAILY","PERIOD"]
[354696461,1740624662795,-509.47432314,0.00049863,120]
[354696462,1740624662805,-500.0,0.00049863,120]
[354696463,1740624662814,-500.0,0.00049863,120]
[354696464,1740624662823,-500.0,0.00049863,120]
[354696465,1740624662833,-174.58467199,0.00049863,120]
[354696466,1740624662843,-350.70598445,0.00049863,120]
[354696467,1740624662852,-500.0,0.00049863,120]
[354696468,1740624662860,-500.0,0.00049863,120]
[354696469,1740624662869,-542.26,0.00049863,120]
[354696470,1740624662878,-535.19252149,0.00049863,120]
[354696471,1740624662887,-242.22466875,0.00049863,120]
[354696472,1740624662897,-508.77973667,0.00049863,120]
[354696473,1740624662908,-573.08959227,0.00049863,120]
[354696474,1740624662918,-515.15195351,0.00049863,120]
[354696475,1740624662927,-500.0,0.00049863,120]
[354696476,1740624662936,-500.0,0.00049863,100]
[354696477,1740624662945,-169.28753144,0.00049863,120]
[354696478,1740624662954,-648.54918992,0.00049863,120]
[354696479,1740624662962,-514.86004591,0.00049863,120]
[354696480,1740624662971,-425.52,0.00049863,120]
[354696481,1740624662980,-160.8,0.00049867,120]
[354696482,1740624662989,-233.79194413,0.00049871,30]
[354696483,1740624662999,-255.27870047,0.00049882,38]
[354696484,1740624663008,-152.0,0.00049892,3]
[354696485,1740624663016,-150.0,0.00049894,30]
[354696486,1740624663026,-150.0,0.00049916,30]
[354696487,1740624663035,-233.79194413,0.00049926,30]
[354696488,1740624663044,-150.0,0.00049967,30]
[354696489,1740624663053,-233.79194413,0.0004998,30]
[354696490,1740624663063,-10000.0,0.0004999,30]
[354696491,1740624663072,-1929.47,0.0005,120]
[354696492,1740624663081,-3612.12,0.0005,120]
[354696493,1740624663091,-184.35992136,0.0005,2]
[354696494,1740624663100,-264.97503178,0.0005,120]
[354696495,1740624663109,-500.0,0.0005,120]
[354696496,1740624663210,-1318.62,0.0005,120]
[354696497,1740624663220,-1003.0,0.0005,13]
[354696498,1740624663230,-150.0,0.00050033,30]
[354696499,1740624663239,-233.79194413,0.00050034,30]
[354696500,1740624663249,-150.0,0.0005004,30]
[354696501,1740624663258,-233.79194413,0.00050089,30]
[354696502,1740624663268,-766.0,0.000501,30]
[354696503,1740624663277,-353.40071207,0.000501,30]
[354696504,1740624663286,-150.0,0.00050112,30]
[354696505,1740624663295,-1612.731499,0.00050136,120]
[354696506,1740624663304,-1131.341063,0.00050136,120]
[354696507,1740624663313,-272.19392612,0.00050136,120]
[354696508,1740624663323,-509.63227705,0.00050136,120]
[354696509,1740624663332,-389.03702223,0.00050136,120]
[354696510,1740624663342,-524.68059092,0.00050136,120]
[354696511,1740624663351,-510.84735576,0.00050136,120]
[354696512,1740624663361,-1318.62,0.00050136,120]
[354696513,1740624663370,-528.92923965,0.00050136,120]
[354696514,1740624663379,-151.0,0.00050136,120]
[354696515,1740624663389,-210.29376107,0.00050136,120]
[354696516,1740624663398,-509.71327382,0.00050136,120]
[354696517,1740624663407,-500.0,0.00050136,120]
[354696518,1740624663416,-400.36792192,0.00050136,120]
[354696519,1740624663427,-507.94965286,0.00050136,120]
[354696520,1740624663436,-507.1017879,0.00050136,120]
[354696521,1740624663446,-545.11288481,0.00050136,120]
[354696522,1740624663455,-508.56429609,0.00050136,120]
[354696523,1740624663465,-500.0,0.00050136,120]
[354696524,1740624663474,-506.79470942,0.00050136,120]
[354696525,1740624663483,-640.84381369,0.00050136,120]
[354696526,1740624663492,-504.3983643,0.00050136,120]
[354696527,1740624663502,-348.14699174,0.00050136,120]
[354696528,1740624663512,-212.26266221,0.00050136,120]
[354696529,1740624663521,-508.28616296,0.00050136,120]
[354696530,1740624663530,-206.06214524,0.00050136,120]
[354696531,1740624663542,-154.97373819,0.00050136,120]
[354696532,1740624663551,-836.09,0.00050136,120]
[354696533,1740624663562,-500.0,0.00050136,120]
[354696534,1740624663572,-391.93,0.00050136,120]
[354696535,1740624663582,-311.76091344,0.00050136,120]
[354696536,1740624663592,-500.0,0.00050136,120]
[354696537,1740624663602,-440.17054711,0.00050136,120]
[354696538,1740624663613,-367.66657149,0.00050136,120]
[354696539,1740624663623,-4100.95,0.00050136,120]
[354696540,1740624663632,-500.0,0.00050136,120]
[354696541,1740624663642,-216.45,0.00050136,120]
[354696542,1740624663651,-500.0,0.00050136,120]
[354696543,1740624663661,-500.0,0.00050136,120]
[354696544,1740624663671,-500.0,0.00050136,120]
[354696545,1740624663681,-542.26,0.00050136,120]
[354696546,1740624663691,-500.0,0.00050136,120]
[354696547,1740624663701,-500.0,0.00050136,100]
[354696548,1740624663710,-233.79194413,0.00050143,30]
[354696549,1740624663719,-150.0,0.0005015,30]
[354696550,1740624663728,-150.0,0.00050185,30]
[354696551,1740624663738,-150.0,0.00050194,30]
[354696552,1740624663747,-233.79194413,0.00050198,30]
[354696553,1740624663757,-233.79194413,0.00050252,30]
[354696554,1740624663766,-150.0,0.00050258,30]
[354696555,1740624663775,-150.0,0.00050268,30]
[354696556,1740624663786,-1318.62,0.00050273,120]
[354696557,1740624663796,-233.79194413,0.00050307,30]
[354696558,1740624663806,-150.0,0.00050331,30]
[354696559,1740624663816,-233.79194413,0.00050361,30]
[354696560,1740624663825,-150.0,0.00050385,30]
[354696561,1740624663836,-150.0,0.00050404,30]
[354696562,1740624663845,-1318.62,0.0005041,120]
[354696563,1740624663855,-478.63,0.0005041,120]
[354696564,1740624663865,-333.06278244,0.0005041,120]
[354696565,1740624663874,-836.09,0.0005041,120]
[354696566,1740624663883,-500.0,0.0005041,120]
[354696567,1740624663893,-500.0,0.0005041,120]
[354696568,1740624663902,-4100.95,0.0005041,120]
[354696569,1740624663911,-500.0,0.0005041,120]
[354696570,1740624663920,-500.0,0.0005041,120]
[354696571,1740624663930,-500.0,0.0005041,120]
[354696572,1740624663939,-500.0,0.0005041,120]
[354696573,1740624663949,-542.26,0.0005041,120]
[354696574,1740624663958,-500.0,0.0005041,120]
[354696575,1740624663968,-500.0,0.0005041,100]
[354696576,1740624663977,-151.0,0.0005041,120]
[354696577,1740624663987,-233.79194413,0.00050416,30]
[354696578,1740624663996,-233.79194413,0.0005047,30]
[354696579,1740624664005,-150.0,0.00050477,30]
[354696580,1740624664015,-168.99,0.00050492,2]
[354696581,1740624664024,-150.0,0.00050502,30]
[354696582,1740624664034,-233.79194413,0.00050524,30]
[354696583,1740624664044,-150.0,0.00050531,30]
[354696584,1740624664054,-153.0,0.00050535,2]
[354696585,1740624664065,-1318.62,0.00050547,120]
[354696586,1740624664075,-150.0,0.00050549,30]
[354696587,1740624664085,-153.0,0.00050555,2]
[354696588,1740624664095,-233.79194413,0.00050579,30]
[354696589,1740624664106,-766.0,0.00050601,30]
[354696590,1740624664115,-150.0,0.00050619,30]
[354696591,1740624664125,-150.0,0.00050622,30]
[354696592,1740624664135,-151.0,0.00050633,120]
[354696593,1740624664144,-151.0,0.00050633,120]
[354696594,1740624664154,-151.0,0.00050633,120]
[354696595,1740624664164,-165.385666,0.00050633,120]
[354696596,1740624664174,-165.385666,0.00050633,120]
[354696597,1740624664183,-233.79194413,0.00050633,30]
[354696598,1740624664193,-150.0,0.00050647,7]
[354696599,1740624664202,-20445.64329183,0.00050656,120]
[354696600,1740624664213,-151.0,0.00050656,120]
[354696601,1740624664222,-151.0,0.00050656,120]
[354696602,1740624664232,-166.780472,0.00050656,120]
[354696603,1740624664242,-153.066563,0.00050684,120]
[354696604,1740624664251,-151.0,0.00050684,120]
[354696605,1740624664261,-1318.62,0.00050684,120]
[354696606,1740624664270,-836.09,0.00050684,120]
[354696607,1740624664279,-500.0,0.00050684,120]
[354696608,1740624664291,-500.0,0.00050684,120]
[354696609,1740624664301,-4100.95,0.00050684,120]
[354696610,1740624664310,-500.0,0.00050684,120]
[354696611,1740624664320,-500.0,0.00050684,120]
[354696612,1740624664330,-500.0,0.00050684,120]
[354696613,1740624664340,-500.0,0.00050684,120]
[354696614,1740624664350,-542.26,0.00050684,120]
[354696615,1740624664360,-255.57,0.00050684,120]
[354696616,1740624664370,-185.49,0.00050684,100]
[354696617,1740624664380,-233.79194413,0.00050688,30]
[354696618,1740624664390,-150.0,0.00050688,7]
[354696619,1740624664399,-150.0,0.00050695,30]
[354696620,1740624664409,-150.0,0.0005073,7]
[354696621,1740624664418,-2000.7989,0.00050735,3]
[354696622,1740624664427,-2000.0,0.00050735,3]
[354696623,1740624664436,-321.86,0.00050736,2]
[354696624,1740624664445,-150.0,0.00050736,30]
[354696625,1740624664455,-150.0,0.0005074,7]
[354696626,1740624664464,-233.79194413,0.00050742,30]
[354696627,1740624664474,-150.0,0.00050768,30]
[354696628,1740624664483,-500.0,0.00050784,19]
[354696629,1740624664494,-500.0,0.00050784,19]
[354696630,1740624664503,-500.0,0.00050784,19]
[354696631,1740624664513,-500.0,0.00050784,19]
[354696632,1740624664522,-500.0,0.00050784,19]
[354696633,1740624664531,-500.0,0.00050784,19]
[354696634,1740624664542,-500.0,0.00050784,19]
[354696635,1740624664551,-500.0,0.00050784,19]
[354696636,1740624664560,-500.0,0.00050784,19]
[354696637,1740624664569,-500.0,0.00050784,19]
[354696638,1740624664579,-500.0,0.00050784,39]
[354696639,1740624664588,-233.79194413,0.00050797,30]
[354696640,1740624664598,-150.0,0.00050803,7]
[354696641,1740624664613,-1318.62,0.00050821,120]
[354696642,1740624664622,-150.0,0.00050841,30]
[354696643,1740624664632,-233.79194413,0.00050851,30]
[354696644,1740624664641,-150.0,0.00050853,30]
[354696645,1740624664653,-188.99248258,0.00050865,7]
[354696646,1740624664663,-150.0,0.00050868,30]
[354696647,1740624664673,-500.0,0.00050885,60]
[354696648,1740624664684,-817.03,0.00050885,60]
[354696649,1740624664693,-500.0,0.00050898,120]
[354696650,1740624664703,-263.16208349,0.00050898,120]
[354696651,1740624664713,-504.72767847,0.00050898,16]
[354696652,1740624664722,-151.0,0.00050898,120]
[354696653,1740624664732,-153.782787,0.00050898,120]
[354696654,1740624664742,-151.0,0.00050898,120]
[354696655,1740624664751,-500.0,0.00050898,120]
[354696656,1740624664761,-310.20639741,0.00050898,120]
[354696657,1740624664771,-597.03703712,0.00050898,120]
[354696658,1740624664780,-151.0,0.00050898,120]
[354696659,1740624664791,-151.0,0.00050898,120]
[354696660,1740624664800,-151.0,0.00050898,120]
[354696661,1740624664810,-189.33811734,0.000509,120]
[354696662,1740624664820,-150.0,0.00050905,7]
[354696663,1740624664829,-233.79194413,0.00050906,30]
[354696664,1740624664839,-150.0,0.00050914,30]
[354696665,1740624664849,-151.0,0.00050958,120]
[354696666,1740624664859,-1318.62,0.00050958,120]
[354696667,1740624664869,-836.09,0.00050958,120]
[354696668,1740624664878,-500.0,0.00050958,120]
[354696669,1740624664888,-500.0,0.00050958,120]
[354696670,1740624664896,-4100.95,0.00050958,120]
[354696671,1740624664906,-500.0,0.00050958,120]
[354696672,1740624664916,-391.41876711,0.00050958,120]
[354696673,1740624664925,-500.0,0.00050958,120]
[354696674,1740624664936,-500.0,0.00050958,120]
[354696675,1740624664947,-151.0,0.00050958,120]
[354696676,1740624664957,-542.26,0.00050958,120]
[354696677,1740624664966,-233.79194413,0.0005096,30]
[354696678,1740624664975,-150.0,0.00050971,30]
[354696679,1740624664984,-150.0,0.00050986,30]
[354696680,1740624664993,-151.0,0.00050998,120]
[354696681,1740624665002,-153.47169,0.00050998,120]
[354696682,1740624665011,-451544.29006452,0.00051,120]
[354696683,1740624665020,-9060.45065065,0.00051,30]
[354696684,1740624665030,-472508.0,0.00051,120]
[354696685,1740624665041,-153.76939,0.00051,120]
[354696686,1740624665050,-151.0,0.00051,120]
[354696687,1740624665059,-204.28138,0.00051,120]
[354696688,1740624665069,-158.319401,0.00051,120]
[354696689,1740624665078,-151.0,0.00051,120]
[354696690,1740624665088,-151.0,0.00051,120]
[354696691,1740624665097,-153.440447,0.00051,120]
[354696692,1740624665106,-151.0,0.00051,120]
[354696693,1740624665116,-151.0,0.00051,120]
[354696694,1740624665124,-151.0,0.00051,120]
[354696695,1740624665134,-151.0,0.00051,120]
[354696696,1740624665143,-151.0,0.00051,120]
[354696697,1740624665152,-151.0,0.00051,120]
[354696698,1740624665161,-151.0,0.00051,120]
[354696699,1740624665255,-151.0,0.00051,120]
[354696700,1740624665265,-161.47913,0.00051,120]
[354696701,1740624665275,-151.0,0.00051,120]
[354696702,1740624665284,-178.9952,0.00051,120]
[354696703,1740624665294,-151.0,0.00051,120]
[354696704,1740624665303,-154.576585,0.00051,120]
[354696705,1740624665312,-151.0,0.00051,120]
[354696706,1740624665322,-245.410453,0.00051,120]
[354696707,1740624665331,-151.0,0.00051,120]
[354696708,1740624665340,-164.128043,0.00051,120]
[354696709,1740624665349,-151.0,0.00051,120]
[354696710,1740624665359,-151.0,0.00051,120]
[354696711,1740624665368,-151.0,0.00051,120]
[354696712,1740624665377,-151.0,0.00051,120]
[354696713,1740624665386,-155.625095,0.00051,120]
[354696714,1740624665395,-151.0,0.00051,120]
[354696715,1740624665404,-151.0,0.00051,120]
[354696716,1740624665413,-165.385666,0.00051,120]
[354696717,1740624665422,-165.385666,0.00051,120]
[354696718,1740624665431,-165.385666,0.00051,120]
[354696719,1740624665440,-165.385666,0.00051,120]
[354696720,1740624665449,-152.0,0.00051,120]
[354696721,1740624665458,-151.0,0.00051,120]
[354696722,1740624665467,-151.0,0.00051,120]
[354696723,1740624665476,-201.0,0.0005101,30]
[354696724,1740624665485,-204.0,0.0005101,30]
[354696725,1740624665495,-233.79194413,0.00051014,30]
[354696726,1740624665504,-342.7364493,0.00051025,2]
[354696727,1740624665515,-2394.964795,0.00051025,2]
[354696728,1740624665525,-932.7824573,0.00051025,2]
[354696729,1740624665537,-150.0,0.00051059,30]
[354696730,1740624665546,-233.79194413,0.00051069,30]
[354696731,1740624665556,-150.0,0.00051088,30]
[354696732,1740624665565,-1318.62,0.00051095,120]
[354696733,1740624665575,-766.0,0.00051102,30]
[354696734,1740624665584,-233.79194413,0.00051123,30]
[354696735,1740624665595,-150.0,0.00051132,30]
[354696736,1740624665605,-500.0,0.00051159,60]
[354696737,1740624665619,-503.33049032,0.00051172,120]
[354696738,1740624665628,-500.0,0.00051172,120]
[354696739,1740624665638,-233.79194413,0.00051178,30]
[354696740,1740624665648,-150.24517826,0.00051205,14]
[354696741,1740624665660,-150.0,0.00051205,30]
[354696742,1740624665669,-150.0,0.00051205,30]
[354696743,1740624665678,-150.0,0.00051205,30]
[354696744,1740624665691,-1318.62,0.00051232,120]
[354696745,1740624665701,-836.09,0.00051232,120]
[354696746,1740624665711,-500.0,0.00051232,120]
[354696747,1740624665721,-500.0,0.00051232,120]
[354696748,1740624665730,-4100.95,0.00051232,120]
[354696749,1740624665739,-500.0,0.00051232,120]
[354696750,1740624665748,-500.0,0.00051232,120]
[354696751,1740624665757,-542.26,0.00051232,120]
[354696752,1740624665767,-233.79194413,0.00051232,30]
[354696753,1740624665778,-1000.0,0.00051233,120]
[354696754,1740624665788,-887.27,0.00051273,120]
[354696755,1740624665798,-150.0,0.00051278,30]
[354696756,1740624665807,-233.79194413,0.00051287,30]
[354696757,1740624665816,-150.0,0.00051322,30]
[354696758,1740624665826,-233.79194413,0.00051341,30]
[354696759,1740624665836,-150.0,0.00051351,30]
[354696760,1740624665845,-151.76,0.00051361,2]
[354696761,1740624665855,-1318.62,0.00051369,120]
[354696762,1740624665864,-233.79194413,0.00051396,30]
[354696763,1740624665874,-154.69,0.000514,48]
[354696764,1740624665883,-154.69,0.000514,48]
[354696765,1740624665892,-154.69,0.000514,48]
[354696766,1740624665902,-154.69,0.000514,48]
[354696767,1740624665911,-154.69,0.000514,48]
[354696768,1740624665920,-154.69,0.000514,48]
[354696769,1740624665929,-154.69,0.000514,48]
[354696770,1740624665939,-150.0,0.00051424,30]
[354696771,1740624665948,-500.0,0.00051433,60]
[354696772,1740624665957,-150.0,0.00051439,30]
[354696773,1740624665966,-500.0,0.00051446,120]
[354696774,1740624665976,-233.79194413,0.0005145,30]
[354696775,1740624665985,-150.0,0.00051496,30]
[354696776,1740624665994,-233.79194413,0.00051504,30]
[354696777,1740624666003,-1318.62,0.00051506,120]
[354696778,1740624666012,-836.09,0.00051506,120]
[354696779,1740624666021,-500.0,0.00051506,120]
[354696780,1740624666030,-646.98571073,0.00051506,120]
[354696781,1740624666041,-4100.95,0.00051506,120]
[354696782,1740624666050,-500.0,0.00051506,120]
[354696783,1740624666059,-500.0,0.00051506,120]
[354696784,1740624666068,-542.26,0.00051506,120]
[354696785,1740624666078,-1000.0,0.00051507,120]
[354696786,1740624666087,-500.0,0.0005152,30]
[354696787,1740624666096,-150.0,0.00051535,14]
[354696788,1740624666106,-150.0,0.00051542,30]
[354696789,1740624666116,-887.27,0.00051547,120]
[354696790,1740624666126,-150.0,0.00051557,30]
[354696791,1740624666136,-233.79194413,0.00051559,30]
[354696792,1740624666145,-150.0,0.00051569,30]
[354696793,1740624666155,-402.03487686,0.000516,120]
[354696794,1740624666170,-766.0,0.00051603,30]
[354696795,1740624666187,-233.79194413,0.00051613,30]
[354696796,1740624666199,-150.0,0.00051642,30]
[354696797,1740624666212,-1318.62,0.00051643,120]
[354696798,1740624666226,-233.79194413,0.00051668,30]
[354696799,1740624666240,-150.0,0.00051674,30]
[354696800,1740624666255,-500.0,0.00051707,60]
[354696801,1740624666267,-150.0,0.00051715,30]
[354696802,1740624666279,-626.97565171,0.0005172,120]
[354696803,1740624666292,-233.79194413,0.00051722,30]
[354696804,1740624666306,-233.79194413,0.00051777,30]
[354696805,1740624666319,-151.0,0.0005178,120]
[354696806,1740624666333,-1318.62,0.0005178,120]
[354696807,1740624666346,-836.09,0.0005178,120]
[354696808,1740624666360,-500.0,0.0005178,120]
[354696809,1740624666375,-4100.95,0.0005178,120]
[354696810,1740624666389,-435.95395357,0.0005178,120]
[354696811,1740624666402,-500.0,0.0005178,120]
[354696812,1740624666417,-542.26,0.0005178,120]
[354696813,1740624666431,-1000.0,0.00051781,120]
[354696814,1740624666445,-150.0,0.00051788,30]
[354696815,1740624666459,-150.0,0.00051791,30]
[354696816,1740624666471,-500.0,0.00051794,30]
[354696817,1740624666482,-151.0,0.000518,120]
[354696818,1740624666495,-887.27,0.00051821,120]
[354696819,1740624666512,-233.79194413,0.00051831,30]
[354696820,1740624666522,-150.0,0.00051861,30]
[354696821,1740624666533,-150.0,0.00051879,30]
[354696822,1740624666546,-233.79194413,0.00051886,30]
[354696823,1740624666560,-150.0,0.00051908,30]
[354696824,1740624666572,-1318.62,0.00051917,120]
[354696825,1740624666585,-150.0,0.00051933,30]
[354696826,1740624666598,-233.79194413,0.0005194,30]
[354696827,1740624666612,-151.76,0.00051951,2]
[354696828,1740624666626,-415.3307343,0.00051964,2]
[354696829,1740624666639,-487.9250192,0.00051964,2]
[354696830,1740624666652,-2902.2372404,0.00051964,2]
[354696831,1740624666663,-3409.5096858,0.00051964,2]
[354696832,1740624666676,-1130.3531436,0.00051964,2]
[354696833,1740624666689,-1327.9238299,0.00051964,2]
[354696834,1740624666702,-500.0,0.00051981,60]
[354696835,1740624666714,-736.40576784,0.00051994,120]
[354696836,1740624666727,-233.79194413,0.00051994,30]
[354696837,1740624666740,-218.97497483,0.00052,120]
[354696838,1740624666752,-1000000.0,0.00052,120]
[354696839,1740624666764,-1204.46,0.00052,120]
[354696840,1740624666776,-151.0,0.00052,120]
[354696841,1740624666789,-151.0,0.00052,120]
[354696842,1740624666801,-151.0,0.00052,120]
[354696843,1740624666814,-151.0,0.00052,120]
[354696844,1740624666827,-151.0,0.00052,120]
[354696845,1740624666840,-151.0,0.00052,120]
[354696846,1740624666852,-176.262424,0.00052,120]
[354696847,1740624666864,-151.0,0.00052,120]
[354696848,1740624666876,-165.385666,0.00052,120]
[354696849,1740624666888,-165.385666,0.00052,120]
[354696850,1740624666900,-150.0,0.00052006,30]
[354696851,1740624666911,-150.0,0.00052025,30]
[354696852,1740624666923,-233.79194413,0.00052049,30]
[354696853,1740624666935,-1318.62,0.00052054,120]
[354696854,1740624666947,-836.09,0.00052054,120]
[354696855,1740624666958,-500.0,0.00052054,120]
[354696856,1740624666970,-4100.95,0.00052054,120]
[354696857,1740624666982,-500.0,0.00052054,120]
[354696858,1740624666993,-500.0,0.00052054,120]
[354696859,1740624667004,-500.0,0.00052054,120]
[354696860,1740624667016,-500.0,0.00052054,120]
[354696861,1740624667028,-500.0,0.00052054,120]
[354696862,1740624667039,-500.0,0.00052054,120]
[354696863,1740624667050,-500.0,0.00052054,120]
[354696864,1740624667062,-500.0,0.00052054,120]
[354696865,1740624667073,-500.0,0.00052054,120]
[354696866,1740624667085,-500.0,0.00052054,120]
[354696867,1740624667096,-500.0,0.00052054,120]
[354696868,1740624667108,-431.17026695,0.00052054,120]
[354696869,1740624667122,-542.26,0.00052054,120]
[354696870,1740624667134,-1000.0,0.00052055,120]
[354696871,1740624667147,-500.0,0.00052068,30]
[354696872,1740624667159,-150.0,0.00052079,30]
[354696873,1740624667170,-151.0,0.00052082,120]
[354696874,1740624667181,-887.27,0.00052095,120]
[354696875,1740624667193,-3000.0,0.000521,2]
[354696876,1740624667205,-233.79194413,0.00052103,30]
[354696877,1740624667217,-150.0,0.00052142,30]
[354696878,1740624667228,-150.0,0.00052152,30]
[354696879,1740624667241,-233.79194413,0.00052158,30]
[354696880,1740624667253,-1318.62,0.00052191,120]
[354696881,1740624667265,-233.79194413,0.00052212,30]
[354696882,1740624667278,-150.0,0.00052216,30]
[354696883,1740624667290,-150.0,0.00052225,30]
[354696884,1740624667303,-500.0,0.00052255,90]
[354696885,1740624667317,-150.0,0.0005226,30]
[354696886,1740624667456,-233.79194413,0.00052267,30]
[354696887,1740624667468,-560.5193042,0.00052292,2]
[354696888,1740624667478,-150.0,0.00052298,30]
[354696889,1740624667488,-233.79194413,0.00052321,30]
[354696890,1740624667497,-1318.62,0.00052328,120]
[354696891,1740624667506,-836.09,0.00052328,120]
[354696892,1740624667515,-500.0,0.00052328,120]
[354696893,1740624667525,-4100.95,0.00052328,120]
[354696894,1740624667535,-500.0,0.00052328,120]
[354696895,1740624667545,-542.26,0.00052328,120]
[354696896,1740624667555,-1000.0,0.00052329,120]
[354696897,1740624667564,-500.0,0.00052342,30]
[354696898,1740624667574,-887.27,0.00052369,120]
[354696899,1740624667583,-150.0,0.0005237,30]
[354696900,1740624667592,-233.79194413,0.00052376,30]
[354696901,1740624667601,-150.0,0.00052377,30]
[354696902,1740624667612,-450.97,0.00052411,30]
[354696903,1740624667622,-440.6,0.00052411,30]
[354696904,1740624667631,-233.79194413,0.0005243,30]
[354696905,1740624667640,-150.0,0.00052443,30]
[354696906,1740624667650,-201.0,0.0005245,30]
[354696907,1740624667661,-204.0,0.0005245,30]
[354696908,1740624667670,-1318.64840941,0.00052465,120]
[354696909,1740624667679,-233.79194413,0.00052484,30]
[354696910,1740624667689,-150.0,0.00052494,30]
[354696911,1740624667699,-150.0,0.00052516,30]
[354696912,1740624667708,-500.0,0.00052529,90]
[354696913,1740624667717,-233.79194413,0.00052539,30]
[354696914,1740624667726,-150.0,0.00052553,30]
[354696915,1740624667735,-150.0,0.00052589,30]
[354696916,1740624667744,-500.0,0.0005259,60]
[354696917,1740624667753,-233.79194413,0.00052593,30]
[354696918,1740624667763,-836.09,0.00052602,120]
[354696919,1740624667772,-500.0,0.00052602,120]
[354696920,1740624667782,-4100.95,0.00052602,120]
[354696921,1740624667795,-500.0,0.00052602,120]
[354696922,1740624667804,-542.26,0.00052602,120]
[354696923,1740624667813,-1000.0,0.00052603,120]
[354696924,1740624667822,-150.0,0.00052611,30]
[354696925,1740624667831,-500.0,0.00052616,30]
[354696926,1740624667842,-887.27,0.00052643,120]
[354696927,1740624667851,-233.79194413,0.00052648,30]
[354696928,1740624667860,-150.0,0.00052662,30]
[354696929,1740624667869,-233.79194413,0.00052702,30]
[354696930,1740624667879,-150.0,0.00052728,30]
[354696931,1740624667888,-150.0,0.00052735,30]
[354696932,1740624667897,-233.79194413,0.00052757,30]
[354696933,1740624667907,-153.96,0.00052764,120]
[354696934,1740624667916,-500.0,0.00052803,90]
[354696935,1740624667925,-150.0,0.00052807,30]
[354696936,1740624667934,-652.64604617,0.00052809,60]
[354696937,1740624667943,-233.79194413,0.00052811,30]
[354696938,1740624667952,-3916.7821313,0.0005284,2]
[354696939,1740624667961,-150.0,0.00052845,30]
[354696940,1740624667970,-233.79194413,0.00052866,30]
[354696941,1740624667979,-836.09,0.00052876,120]
[354696942,1740624667988,-500.0,0.00052876,120]
[354696943,1740624667998,-4100.95,0.00052876,120]
[354696944,1740624668014,-617.91356683,0.00052876,120]
[354696945,1740624668028,-542.26,0.00052876,120]
[354696946,1740624668038,-1000.0,0.00052877,120]
[354696947,1740624668047,-150.0,0.0005288,30]
[354696948,1740624668056,-150.0,0.00052889,30]
[354696949,1740624668065,-865.98834531,0.0005289,30]
[354696950,1740624668075,-887.27,0.00052917,120]
[354696951,1740624668084,-233.79194413,0.0005292,30]
[354696952,1740624668093,-1525.4945162,0.00052928,2]
[354696953,1740624668103,-150.0,0.00052953,30]
[354696954,1740624668112,-150.0,0.00052963,30]
[354696955,1740624668122,-633.1135891,0.00052964,2]
[354696956,1740624668131,-705.7078741,0.00052964,2]
[354696957,1740624668140,-4424.0545767,0.00052964,2]
[354696958,1740624668148,-4931.3270221,0.00052964,2]
[354696959,1740624668158,-1723.0652024,0.00052964,2]
[354696960,1740624668167,-1920.6358887,0.00052964,2]